[Event "Championnat d'Europe de Blitz"]
[Date "2024.12.09"]
[White "Ilic, Ljubomir"]
[Black "Pacher, Milan"]
[WhiteElo "2076"]
[BlackElo "2310"]
[Round "6.53"]
[Result "0-1"]
[TimeControl "180+2"]

1. e4 {[%emt 00:00:01] [%clk 00:03:03]} c5 {[%emt 00:00:01] [%clk 00:03:03]} 2.
Nf3 {[%emt 00:00:02] [%clk 00:03:03]} Nc6 {[%emt 00:00:01] [%clk 00:03:04]} 3.
d4 {[%clk 00:03:04]} cxd4 {[%emt 00:00:02] [%clk 00:03:05]} 4. Nxd4 {[%clk
00:03:05]} e5 {[%emt 00:00:01] [%clk 00:03:06]} 5. Nb5 {[%emt 00:00:02] [%clk
00:03:05]} d6 {[%emt 00:00:15]} 6. N1c3 {[%clk 00:02:52]} a6 {[%emt 00:00:02]
[%clk 00:03:07]} 7. Na3 {[%clk 00:02:53]} Be7 {[%emt 00:00:01] [%clk 00:03:08]}
8. Nc4 {[%emt 00:00:04] [%clk 00:02:51]} b5 {[%emt 00:00:04] [%clk 00:03:06]} 9.
Ne3 {[%emt 00:00:01] [%clk 00:02:52]} Nf6 {[%emt 00:00:02] [%clk 00:03:05]} 10.
Ned5 {[%emt 00:00:07] [%clk 00:02:47]} O-O {[%emt 00:00:08] [%clk 00:03:00]} 11.
Be3 {[%emt 00:00:21] [%clk 00:02:28]} Rb8 {[%emt 00:00:03] [%clk 00:03:00]} 12.
Be2 {[%emt 00:00:08] [%clk 00:02:22]} b4 {[%emt 00:00:09] [%clk 00:02:52]} 13.
Nxf6+ {[%emt 00:00:02] [%clk 00:02:22]} Bxf6 {[%emt 00:00:01] [%clk 00:02:53]}
14. Nd5 {[%clk 00:02:22]} Bg5 {[%emt 00:00:02] [%clk 00:02:53]} 15. O-O {[%emt
00:00:23] [%clk 00:02:01]} a5 {[%emt 00:00:02] [%clk 00:02:54]} 16. b3 {[%emt
00:00:57] [%clk 00:01:06]} Be6 {[%emt 00:00:05] [%clk 00:02:50]} 17. Bc4 {[%emt
00:00:19] [%clk 00:00:51]} Bxe3 {[%emt 00:00:08] [%clk 00:02:43]} 18. Nxe3
{[%emt 00:00:02] [%clk 00:00:51]} Nd4 {[%emt 00:00:02] [%clk 00:02:43]} 19. Qd3
{[%emt 00:00:17] [%clk 00:00:36]} Qg5 {[%emt 00:00:08] [%clk 00:02:37]} 20. f3
{[%emt 00:00:09] [%clk 00:00:29]} h5 {[%emt 00:00:11] [%clk 00:02:28]} 21. Kh1
{[%emt 00:00:04] [%clk 00:00:27]} g6 {[%emt 00:00:10] [%clk 00:02:19]} 22. a3
{[%emt 00:00:03] [%clk 00:00:28]} h4 {[%emt 00:00:19] [%clk 00:02:01]} 23. axb4
{[%emt 00:00:01] [%clk 00:00:29]} h3 {[%emt 00:00:04] [%clk 00:01:59]} 24. g3
{[%emt 00:00:03] [%clk 00:00:29]} axb4 {[%emt 00:00:02] [%clk 00:01:59]} 25. Ra6
{[%emt 00:00:10] [%clk 00:00:21]} Rbd8 {[%emt 00:00:20] [%clk 00:01:40]} 26. f4
{[%emt 00:00:05] [%clk 00:00:18]} exf4 {[%emt 00:00:10] [%clk 00:01:32]} 27.
Rxf4 {[%clk 00:00:19]} Bxc4 {[%emt 00:00:07] [%clk 00:01:28]} 28. Qxd4 {[%emt
00:00:06] [%clk 00:00:15]} Bxa6 {[%emt 00:00:04] [%clk 00:01:26]} 29. Rh4 {[%emt
00:00:05] [%clk 00:00:12]} Qe5 {[%emt 00:00:01] [%clk 00:01:27]} 0-1

[Site "Europe Echecs"]

[Event "Championnat d'Europe de Blitz"]
[Date "2024.12.09"]
[White "Diermair, Andreas"]
[Black "Sutbas, Batuhan"]
[WhiteElo "2433"]
[BlackElo "1885"]
[Round "6.54"]
[Result "1-0"]
[TimeControl "180+2"]

1. c4 {[%clk 00:03:03]} e6 {[%emt 00:00:04] [%clk 00:03:01]} 2. g3 {[%emt
00:00:02] [%clk 00:03:03]} d5 {[%emt 00:00:02] [%clk 00:03:00]} 3. Bg2 {[%emt
00:00:01] [%clk 00:03:04]} c6 {[%emt 00:00:01] [%clk 00:03:01]} 4. Nf3 {[%emt
00:00:05] [%clk 00:03:02]} Nf6 {[%emt 00:00:02] [%clk 00:03:01]} 5. O-O {[%emt
00:00:04] [%clk 00:02:59]} Be7 {[%emt 00:00:04] [%clk 00:02:59]} 6. b3 {[%emt
00:00:06] [%clk 00:02:56]} a5 {[%emt 00:00:02] [%clk 00:02:59]} 7. Nc3 {[%emt
00:00:03] [%clk 00:02:55]} O-O {[%emt 00:00:03] [%clk 00:02:58]} 8. d4 {[%emt
00:00:04] [%clk 00:02:53]} Nbd7 {[%emt 00:00:02] [%clk 00:02:57]} 9. Qd3 {[%emt
00:00:21] [%clk 00:02:34]} b6 {[%emt 00:00:06] [%clk 00:02:53]} 10. e4 {[%emt
00:00:01] [%clk 00:02:35]} Ba6 {[%emt 00:00:07] [%clk 00:02:48]} 11. e5 {[%emt
00:00:09] [%clk 00:02:28]} Ne8 {[%emt 00:00:07] [%clk 00:02:43]} 12. Rd1 {[%clk
00:02:29]} g6 {[%emt 00:00:07] [%clk 00:02:38]} 13. Bh6 {[%emt 00:00:22] [%clk
00:02:10]} Ng7 {[%emt 00:00:02] [%clk 00:02:38]} 14. Rac1 {[%emt 00:00:05] [%clk
00:02:06]} Re8 {[%emt 00:00:05] [%clk 00:02:35]} 15. g4 {[%emt 00:00:03] [%clk
00:02:06]} Ba3 {[%emt 00:00:07] [%clk 00:02:30]} 16. Rc2 {[%emt 00:00:03] [%clk
00:02:05]} Rc8 {[%emt 00:00:07] [%clk 00:02:24]} 17. h3 {[%emt 00:00:12] [%clk
00:01:55]} Bb4 {[%emt 00:00:15] [%clk 00:02:12]} 18. Qe3 {[%emt 00:00:10] [%clk
00:01:46]} dxc4 {[%emt 00:00:16] [%clk 00:01:59]} 19. Ne4 {[%emt 00:00:01] [%clk
00:01:46]} cxb3 {[%emt 00:00:34] [%clk 00:01:28]} 20. axb3 {[%emt 00:00:01]
[%clk 00:01:47]} Be7 {[%emt 00:00:06] [%clk 00:01:24]} 21. Qf4 {[%emt 00:00:18]
[%clk 00:01:30]} Rf8 {[%emt 00:00:39] [%clk 00:00:47]} 22. g5 {[%emt 00:00:22]
[%clk 00:01:10]} Nf5 {[%emt 00:00:08] [%clk 00:00:42]} 23. Nf6+ {[%emt 00:00:08]
[%clk 00:01:03]} Bxf6 {[%emt 00:00:06] [%clk 00:00:38]} 24. gxf6 {[%emt
00:00:05] [%clk 00:01:00]} Re8 {[%emt 00:00:15] [%clk 00:00:25]} 25. Rcd2 {[%emt
00:00:04] [%clk 00:00:58]} b5 {[%emt 00:00:13] [%clk 00:00:15]} 26. Nh4 {[%emt
00:00:03] [%clk 00:00:55]} a4 {[%emt 00:00:03] [%clk 00:00:15]} 27. Ra1 {[%emt
00:00:18] [%clk 00:00:39]} Qa5 {[%emt 00:00:03] [%clk 00:00:15]} 28. Nxf5 {[%emt
00:00:05] [%clk 00:00:36]} exf5 {[%clk 00:00:16]} 29. bxa4 {[%emt 00:00:08]
[%clk 00:00:30]} bxa4 {[%emt 00:00:02] [%clk 00:00:16]} 30. Rda2 {[%emt
00:00:04] [%clk 00:00:28]} Bb5 {[%emt 00:00:02] [%clk 00:00:16]} 31. Qh4 {[%emt
00:00:03] [%clk 00:00:26]} Qb4 {[%emt 00:00:04] [%clk 00:00:15]} 32. Rc2 {[%emt
00:00:14] [%clk 00:00:14]} Nxe5 {[%emt 00:00:02] [%clk 00:00:15]} 33. Bd2 {[%emt
00:00:04] [%clk 00:00:11]} Qf8 {[%emt 00:00:14] [%clk 00:00:03]} 34. dxe5 {[%emt
00:00:01] [%clk 00:00:12]} Rxe5 {[%emt 00:00:01] [%clk 00:00:04]} 35. Be3 {[%emt
00:00:08] [%clk 00:00:07]} Rce8 {[%emt 00:00:03] [%clk 00:00:03]} 36. Bxc6
{[%emt 00:00:03] [%clk 00:00:05]} Bxc6 {[%emt 00:00:03] [%clk 00:00:03]} 37.
Rxc6 {[%clk 00:00:07]} h5 {[%emt 00:00:01] [%clk 00:00:04]} 38. Qg5 {[%emt
00:00:01] [%clk 00:00:07]} Kh7 {[%emt 00:00:02] [%clk 00:00:05]} 39. Rxa4 {[%clk
00:00:07]} Rd8 {[%emt 00:00:02] [%clk 00:00:05]} 40. Rh4 {[%emt 00:00:01] [%clk
00:00:08]} Rd1+ {[%emt 00:00:03] [%clk 00:00:05]} 41. Kh2 {[%emt 00:00:01] [%clk
00:00:08]} Rxe3 {[%emt 00:00:03] [%clk 00:00:05]} 42. Qxe3 {[%emt 00:00:01]
[%clk 00:00:09]} Qb8+ {[%emt 00:00:02] [%clk 00:00:05]} 43. Qg3 {[%emt 00:00:02]
[%clk 00:00:08]} Qb1 {[%emt 00:00:01] [%clk 00:00:06]} 44. Rxh5+ {[%emt
00:00:02] [%clk 00:00:08]} 1-0

[Site "Europe Echecs"]

[Event "Championnat d'Europe de Blitz"]
[Date "2024.12.09"]
[White "Pichot, Alan"]
[Black "Jobava, Baadur"]
[WhiteElo "2637"]
[BlackElo "2578"]
[Round "7.1"]
[Result "1-0"]
[TimeControl "180+2"]

1. e4 {[%emt 00:00:05] [%clk 00:03:02]} d6 {[%emt 00:00:30] [%clk 00:03:00]} 2.
d4 {[%emt 00:00:02] [%clk 00:03:03]} Nf6 {[%clk 00:03:02]} 3. Nc3 {[%emt
00:00:02] [%clk 00:03:04]} e5 {[%emt 00:00:01] [%clk 00:03:02]} 4. Nf3 {[%emt
00:00:01] [%clk 00:03:04]} Nbd7 {[%emt 00:00:02] [%clk 00:03:03]} 5. Rg1 {[%emt
00:00:12] [%clk 00:02:54]} g6 {[%emt 00:00:02] [%clk 00:03:03]} 6. g4 {[%emt
00:00:03] [%clk 00:02:53]} Bg7 {[%emt 00:00:01] [%clk 00:03:04]} 7. dxe5 {[%emt
00:00:07] [%clk 00:02:48]} dxe5 {[%emt 00:00:04] [%clk 00:03:03]} 8. Be3 {[%emt
00:00:01] [%clk 00:02:48]} O-O {[%emt 00:00:04] [%clk 00:03:01]} 9. Qd3 {[%emt
00:00:03] [%clk 00:02:46]} c6 {[%emt 00:00:29] [%clk 00:02:34]} 10. O-O-O {[%emt
00:00:02] [%clk 00:02:46]} Qe7 {[%emt 00:00:12] [%clk 00:02:25]} 11. Qd6 {[%emt
00:00:06] [%clk 00:02:42]} Qxd6 {[%emt 00:00:06] [%clk 00:02:21]} 12. Rxd6
{[%emt 00:00:02] [%clk 00:02:43]} Re8 {[%clk 00:02:21]} 13. g5 {[%emt 00:00:23]
[%clk 00:02:21]} Nh5 {[%emt 00:00:01] [%clk 00:02:22]} 14. Bh3 {[%emt 00:00:02]
[%clk 00:02:21]} Nb6 {[%emt 00:00:10] [%clk 00:02:15]} 15. Bxc8 {[%emt 00:00:06]
[%clk 00:02:17]} Raxc8 {[%emt 00:00:02] [%clk 00:02:15]} 16. b3 {[%emt 00:00:18]
[%clk 00:02:01]} Bf8 {[%emt 00:00:39] [%clk 00:01:38]} 17. Rd2 {[%emt 00:00:02]
[%clk 00:02:00]} Nf4 {[%emt 00:00:26] [%clk 00:01:14]} 18. Kb2 {[%emt 00:00:47]
[%clk 00:01:16]} h6 {[%emt 00:00:05] [%clk 00:01:12]} 19. h4 {[%emt 00:00:04]
[%clk 00:01:13]} h5 {[%emt 00:00:09] [%clk 00:01:05]} 20. a4 {[%emt 00:00:13]
[%clk 00:01:03]} Bb4 {[%emt 00:00:03] [%clk 00:01:03]} 21. Ra1 {[%emt 00:00:28]
[%clk 00:00:37]} Ba5 {[%emt 00:00:11] [%clk 00:00:55]} 22. Rad1 {[%emt 00:00:10]
[%clk 00:00:28]} Bb4 {[%emt 00:00:06] [%clk 00:00:51]} 23. Ra1 {[%emt 00:00:01]
[%clk 00:00:28]} Ba5 {[%emt 00:00:02] [%clk 00:00:53]} 24. Bc5 {[%emt 00:00:06]
[%clk 00:00:23]} Ne6 {[%emt 00:00:04] [%clk 00:00:51]} 25. Bd6 {[%emt 00:00:11]
[%clk 00:00:14]} c5 {[%emt 00:00:08] [%clk 00:00:45]} 26. Nxe5 {[%emt 00:00:05]
[%clk 00:00:11]} Nd4 {[%emt 00:00:03] [%clk 00:00:44]} 27. Nd3 {[%emt 00:00:06]
[%clk 00:00:08]} c4 {[%emt 00:00:04] [%clk 00:00:41]} 28. Bb4 {[%emt 00:00:04]
[%clk 00:00:06]} Nf3 {[%emt 00:00:05] [%clk 00:00:39]} 29. Rdd1 {[%emt 00:00:04]
[%clk 00:00:04]} cxd3 {[%emt 00:00:02] [%clk 00:00:39]} 30. Bxa5 {[%clk
00:00:05]} dxc2 {[%emt 00:00:01] [%clk 00:00:40]} 31. Kxc2 {[%emt 00:00:03]
[%clk 00:00:04]} Rxe4 {[%emt 00:00:01] [%clk 00:00:41]} 32. Kb2 {[%emt 00:00:03]
[%clk 00:00:03]} Rxh4 {[%emt 00:00:01] [%clk 00:00:41]} 33. Rd3 {[%clk
00:00:05]} Nxg5 {[%emt 00:00:01] [%clk 00:00:42]} 34. Rad1 {[%emt 00:00:02]
[%clk 00:00:05]} Ne6 {[%emt 00:00:01] [%clk 00:00:43]} 35. Nb5 {[%emt 00:00:01]
[%clk 00:00:06]} Ra8 {[%emt 00:00:26] [%clk 00:00:20]} 36. Nd6 {[%emt 00:00:02]
[%clk 00:00:06]} Nc5 {[%emt 00:00:04] [%clk 00:00:17]} 37. Rd4 {[%emt 00:00:03]
[%clk 00:00:05]} Rh3 {[%emt 00:00:02] [%clk 00:00:18]} 38. Bc3 {[%emt 00:00:03]
[%clk 00:00:04]} Rf3 {[%emt 00:00:03] [%clk 00:00:16]} 39. a5 {[%emt 00:00:03]
[%clk 00:00:03]} Rxf2+ {[%emt 00:00:01] [%clk 00:00:17]} 40. Ka3 {[%clk
00:00:05]} Nbd7 {[%emt 00:00:01] [%clk 00:00:17]} 41. Nxb7 {[%emt 00:00:02]
[%clk 00:00:05]} Re8 {[%emt 00:00:13] [%clk 00:00:06]} 42. Bb4 {[%emt 00:00:01]
[%clk 00:00:06]} Nxb7 {[%emt 00:00:04] [%clk 00:00:05]} 43. Rxd7 {[%clk
00:00:07]} Nxa5 {[%emt 00:00:02] [%clk 00:00:05]} 44. Bxa5 {[%clk 00:00:08]} h4
{[%emt 00:00:02] [%clk 00:00:05]} 45. Bc3 {[%emt 00:00:01] [%clk 00:00:09]} g5
{[%emt 00:00:01] [%clk 00:00:06]} 46. R1d5 {[%emt 00:00:02] [%clk 00:00:09]} f6
{[%emt 00:00:02] [%clk 00:00:06]} 47. Rc7 {[%emt 00:00:01] [%clk 00:00:10]} h3
{[%emt 00:00:02] [%clk 00:00:07]} 48. Rdd7 {[%clk 00:00:11]} h2 {[%emt 00:00:01]
[%clk 00:00:08]} 49. Rg7+ {[%clk 00:00:12]} Kh8 {[%clk 00:00:09]} 50. Rh7+
{[%emt 00:00:01] [%clk 00:00:13]} Kg8 {[%emt 00:00:01]} 51. Rcg7+ {[%clk
00:00:15]} Kf8 {[%clk 00:00:13]} 52. Bb4+ {[%emt 00:00:01] [%clk 00:00:16]} Re7
{[%clk 00:00:14]} 53. Bxe7+ {[%emt 00:00:02] [%clk 00:00:16]} Ke8 {[%clk
00:00:16]} 54. Bc5 {[%emt 00:00:03] [%clk 00:00:15]} 1-0

[Site "Europe Echecs"]

[Event "Championnat d'Europe de Blitz"]
[Date "2024.12.09"]
[White "Sarana, Alexey"]
[Black "Van Foreest, Jorden"]
[WhiteElo "2674"]
[BlackElo "2677"]
[Round "7.2"]
[Result "0-1"]
[TimeControl "180+2"]

1. d4 {[%emt 00:43:18] [%clk 00:03:04]} Nf6 {[%clk 00:03:03]} 2. c4 {[%emt
00:00:02] [%clk 00:03:05]} e6 {[%emt 00:00:04] [%clk 00:03:03]} 3. Nc3 {[%clk
00:03:05]} Bb4 {[%clk 00:03:04]} 4. Nf3 {[%emt 00:00:02] [%clk 00:03:06]} O-O
{[%emt 00:00:24] [%clk 00:02:41]} 5. Bg5 {[%emt 00:00:01] [%clk 00:03:07]} d5
{[%emt 00:00:07] [%clk 00:02:37]} 6. e3 {[%emt 00:00:05] [%clk 00:03:04]} Nbd7
{[%emt 00:00:07] [%clk 00:02:31]} 7. cxd5 {[%emt 00:00:08] [%clk 00:02:58]} exd5
{[%emt 00:00:02] [%clk 00:02:31]} 8. Bd3 {[%emt 00:00:11] [%clk 00:02:49]} c5
{[%emt 00:00:12] [%clk 00:02:22]} 9. O-O {[%emt 00:00:02] [%clk 00:02:49]} Qa5
{[%emt 00:00:16] [%clk 00:02:07]} 10. Qc2 {[%emt 00:00:12] [%clk 00:02:39]} c4
{[%emt 00:00:04] [%clk 00:02:05]} 11. Bf5 {[%emt 00:00:01] [%clk 00:02:39]} Re8
{[%emt 00:00:12] [%clk 00:01:56]} 12. Rfb1 {[%emt 00:00:22] [%clk 00:02:19]} h6
{[%emt 00:00:11] [%clk 00:01:47]} 13. Bh4 {[%emt 00:00:03] [%clk 00:02:18]} Bxc3
{[%emt 00:00:15] [%clk 00:01:34]} 14. Qxc3 {[%emt 00:00:03] [%clk 00:02:18]}
Qxc3 {[%emt 00:00:19] [%clk 00:01:17]} 15. bxc3 {[%emt 00:00:01] [%clk
00:02:18]} Ne4 {[%emt 00:00:02] [%clk 00:01:17]} 16. Bxe4 {[%emt 00:00:01] [%clk
00:02:19]} Rxe4 {[%emt 00:00:01] [%clk 00:01:18]} 17. Bg3 {[%emt 00:00:23] [%clk
00:01:58]} Re6 {[%emt 00:00:05] [%clk 00:01:14]} 18. Rb5 {[%emt 00:00:07] [%clk
00:01:54]} Nb6 {[%emt 00:00:05] [%clk 00:01:11]} 19. Bc7 {[%emt 00:00:08] [%clk
00:01:48]} Bd7 {[%clk 00:01:12]} 20. Ra5 {[%emt 00:00:02] [%clk 00:01:48]} Na4
{[%emt 00:00:13] [%clk 00:01:02]} 21. Rxd5 {[%emt 00:00:47] [%clk 00:01:03]} Bc6
{[%emt 00:00:01] [%clk 00:01:02]} 22. Rh5 {[%emt 00:00:01] [%clk 00:01:03]} Nxc3
{[%emt 00:00:02] [%clk 00:01:03]} 23. Ba5 {[%emt 00:00:06] [%clk 00:01:00]} Nd5
{[%emt 00:00:14] [%clk 00:00:50]} 24. Rc1 {[%emt 00:00:07] [%clk 00:00:55]} b5
{[%emt 00:00:02] [%clk 00:00:50]} 25. Ne5 {[%emt 00:00:05] [%clk 00:00:52]} Nf6
{[%emt 00:00:03] [%clk 00:00:49]} 26. Rh4 {[%emt 00:00:06] [%clk 00:00:47]} Nd7
{[%emt 00:00:04] [%clk 00:00:48]} 27. d5 {[%emt 00:00:22] [%clk 00:00:27]} Rxe5
{[%clk 00:00:49]} 28. dxc6 {[%emt 00:00:01] [%clk 00:00:29]} Nb6 {[%clk
00:00:51]} 29. Rd4 {[%emt 00:00:10] [%clk 00:00:21]} Rc5 {[%emt 00:00:04] [%clk
00:00:48]} 30. a4 {[%emt 00:00:14] [%clk 00:00:09]} bxa4 {[%emt 00:00:12] [%clk
00:00:39]} 31. Bxb6 {[%emt 00:00:02] [%clk 00:00:09]} axb6 {[%clk 00:00:40]} 32.
Rdxc4 {[%clk 00:00:10]} Rxc4 {[%emt 00:00:02] [%clk 00:00:40]} 33. Rxc4 {[%emt
00:00:01] [%clk 00:00:11]} b5 {[%clk 00:00:41]} 34. Rc5 {[%emt 00:00:08] [%clk
00:00:06]} a3 {[%emt 00:00:16] [%clk 00:00:27]} 35. c7 {[%emt 00:00:03] [%clk
00:00:05]} Rc8 {[%emt 00:00:01] [%clk 00:00:27]} 36. Rc1 {[%emt 00:00:03] [%clk
00:00:04]} b4 {[%emt 00:00:02] [%clk 00:00:27]} 37. Kf1 {[%emt 00:00:02] [%clk
00:00:04]} b3 {[%emt 00:00:01] [%clk 00:00:28]} 0-1

[Site "Europe Echecs"]

[Event "Championnat d'Europe de Blitz"]
[Date "2024.12.09"]
[White "Koelle, Tobias"]
[Black "Korobov, Anton"]
[WhiteElo "2437"]
[BlackElo "2629"]
[Round "7.3"]
[Result "0-1"]
[TimeControl "180+2"]

1. d4 {[%clk 00:03:03]} Nf6 {[%emt 00:00:01] [%clk 00:03:03]} 2. c4 {[%clk
00:03:04]} b6 {[%emt 00:00:04] [%clk 00:03:04]} 3. f3 {[%clk 00:03:04]} Nc6
{[%emt 00:00:01] [%clk 00:03:05]} 4. Nc3 {[%clk 00:03:05]} e5 {[%clk 00:03:06]}
5. d5 {[%clk 00:03:07]} Ne7 {[%clk 00:03:07]} 6. e4 {[%emt 00:00:01] [%clk
00:03:08]} Ng6 {[%clk 00:03:07]} 7. h4 {[%emt 00:00:02] [%clk 00:03:08]} h5
{[%emt 00:00:20] [%clk 00:02:50]} 8. Be3 {[%emt 00:00:03] [%clk 00:03:07]} Bc5
{[%emt 00:00:02] [%clk 00:02:50]} 9. Qd2 {[%emt 00:00:03] [%clk 00:03:06]} d6
{[%emt 00:00:09] [%clk 00:02:43]} 10. g3 {[%emt 00:00:01] [%clk 00:03:07]} Bd7
{[%emt 00:00:16] [%clk 00:02:29]} 11. Bh3 {[%emt 00:00:03] [%clk 00:03:06]} c6
{[%emt 00:00:11] [%clk 00:02:20]} 12. Bxd7+ {[%emt 00:00:06] [%clk 00:03:02]}
Qxd7 {[%emt 00:00:02] [%clk 00:02:20]} 13. dxc6 {[%emt 00:00:22] [%clk
00:02:42]} Qxc6 {[%emt 00:00:01] [%clk 00:02:21]} 14. Nd5 {[%emt 00:00:02] [%clk
00:02:42]} Nxd5 {[%emt 00:00:07] [%clk 00:02:15]} 15. cxd5 {[%emt 00:00:02]
[%clk 00:02:42]} Qb5 {[%emt 00:00:08] [%clk 00:02:09]} 16. Bxc5 {[%emt 00:00:10]
[%clk 00:02:35]} bxc5 {[%emt 00:00:02] [%clk 00:02:09]} 17. Ne2 {[%emt 00:00:01]
[%clk 00:02:36]} O-O {[%emt 00:00:06] [%clk 00:02:05]} 18. O-O {[%emt 00:00:02]
[%clk 00:02:36]} Rab8 {[%emt 00:00:09] [%clk 00:01:58]} 19. b3 {[%emt 00:00:06]
[%clk 00:02:32]} f5 {[%emt 00:00:06] [%clk 00:01:54]} 20. Rad1 {[%emt 00:00:29]
[%clk 00:02:04]} f4 {[%emt 00:00:03] [%clk 00:01:53]} 21. Rde1 {[%emt 00:00:51]
[%clk 00:01:15]} c4 {[%emt 00:00:12] [%clk 00:01:43]} 22. bxc4 {[%emt 00:00:05]
[%clk 00:01:12]} Qxc4 {[%emt 00:00:08] [%clk 00:01:37]} 23. Rc1 {[%emt 00:00:03]
[%clk 00:01:12]} Qa4 {[%emt 00:00:02] [%clk 00:01:35]} 24. Rc6 {[%emt 00:00:03]
[%clk 00:01:12]} Qa3 {[%emt 00:00:12] [%clk 00:01:26]} 25. Rc3 {[%emt 00:00:07]
[%clk 00:01:07]} Rb2 {[%emt 00:00:10] [%clk 00:01:18]} 26. Rxa3 {[%emt 00:00:12]
[%clk 00:00:57]} Rxd2 {[%emt 00:00:02] [%clk 00:01:18]} 27. Rf2 {[%emt 00:00:01]
[%clk 00:00:58]} Rb8 {[%emt 00:00:21] [%clk 00:00:58]} 28. Nc3 {[%emt 00:00:07]
[%clk 00:00:53]} Rxf2 {[%emt 00:00:03] [%clk 00:00:57]} 29. Kxf2 {[%emt
00:00:02] [%clk 00:00:54]} Rb2+ {[%emt 00:00:01] [%clk 00:00:57]} 30. Ne2 {[%emt
00:00:25] [%clk 00:00:32]} fxg3+ {[%emt 00:00:01] [%clk 00:00:57]} 31. Ke3
{[%emt 00:00:02] [%clk 00:00:32]} g2 {[%emt 00:00:15] [%clk 00:00:44]} 32. Ng1
{[%clk 00:00:33]} Nf4 {[%emt 00:00:01] [%clk 00:00:46]} 33. Rb3 {[%emt 00:00:05]
[%clk 00:00:31]} Rxa2 {[%emt 00:00:03] [%clk 00:00:44]} 34. Rb1 {[%emt 00:00:08]
[%clk 00:00:24]} a5 {[%emt 00:00:01] [%clk 00:00:45]} 35. Rc1 {[%emt 00:00:17]
[%clk 00:00:10]} Kh7 {[%emt 00:00:02] [%clk 00:00:45]} 36. Rb1 {[%emt 00:00:01]
[%clk 00:00:11]} a4 {[%emt 00:00:01] [%clk 00:00:46]} 37. Rc1 {[%clk 00:00:12]}
a3 {[%emt 00:00:02] [%clk 00:00:47]} 0-1

[Site "Europe Echecs"]

[Event "Championnat d'Europe de Blitz"]
[Date "2024.12.09"]
[White "Fedoseev, Vladimir"]
[Black "Zlatkov, Anton"]
[WhiteElo "2709"]
[BlackElo "2324"]
[Round "7.4"]
[Result "1-0"]
[TimeControl "180+2"]

1. d4 {[%emt 00:00:02] [%clk 00:03:03]} Nf6 {[%emt 00:00:01] [%clk 00:03:03]} 2.
c4 {[%emt 00:00:03] [%clk 00:03:04]} e6 {[%clk 00:03:05]} 3. Nf3 {[%clk
00:03:05]} d5 {[%emt 00:00:01] [%clk 00:03:05]} 4. Nc3 {[%clk 00:03:06]} Bb4
{[%clk 00:03:06]} 5. Bg5 {[%emt 00:00:02] [%clk 00:03:06]} h6 {[%emt 00:00:02]
[%clk 00:03:07]} 6. Bxf6 {[%emt 00:00:01] [%clk 00:03:06]} Qxf6 {[%emt 00:00:01]
[%clk 00:03:07]} 7. e3 {[%emt 00:00:02] [%clk 00:03:07]} O-O {[%emt 00:00:06]
[%clk 00:03:04]} 8. Rc1 {[%emt 00:00:01] [%clk 00:03:07]} c5 {[%emt 00:00:13]
[%clk 00:02:53]} 9. cxd5 {[%emt 00:00:07] [%clk 00:03:02]} exd5 {[%emt 00:00:01]
[%clk 00:02:53]} 10. dxc5 {[%emt 00:00:02] [%clk 00:03:03]} Nc6 {[%emt 00:00:21]
[%clk 00:02:34]} 11. Be2 {[%emt 00:00:26] [%clk 00:02:38]} Be6 {[%emt 00:00:07]
[%clk 00:02:30]} 12. O-O {[%emt 00:00:09] [%clk 00:02:31]} Rfd8 {[%emt 00:00:01]
[%clk 00:02:31]} 13. Nb5 {[%emt 00:00:18] [%clk 00:02:15]} Qxb2 {[%emt 00:01:10]
[%clk 00:01:23]} 14. a3 {[%emt 00:00:21] [%clk 00:01:56]} Ba5 {[%emt 00:00:11]
[%clk 00:01:15]} 15. Rb1 {[%emt 00:00:03] [%clk 00:01:54]} Qf6 {[%emt 00:00:04]
[%clk 00:01:12]} 16. Nd6 {[%emt 00:00:02] [%clk 00:01:55]} b6 {[%emt 00:00:14]
[%clk 00:01:01]} 17. Qa4 {[%emt 00:00:12] [%clk 00:01:45]} Ne5 {[%emt 00:00:27]
[%clk 00:00:35]} 18. Nb7 {[%emt 00:00:11] [%clk 00:01:36]} Rdc8 {[%emt 00:00:02]
[%clk 00:00:35]} 19. Nxa5 {[%emt 00:00:39] [%clk 00:01:00]} bxa5 {[%emt
00:00:01] [%clk 00:00:36]} 20. Qxa5 {[%emt 00:00:15] [%clk 00:00:46]} Bg4 {[%emt
00:00:18] [%clk 00:00:20]} 21. Nxe5 {[%emt 00:00:18] [%clk 00:00:31]} Bxe2
{[%emt 00:00:01] [%clk 00:00:21]} 22. Rfe1 {[%emt 00:00:02] [%clk 00:00:31]}
Qxe5 {[%emt 00:00:11] [%clk 00:00:12]} 23. Rxe2 {[%clk 00:00:32]} d4 {[%emt
00:00:01] [%clk 00:00:13]} 24. Rc1 {[%clk 00:00:34]} Rc6 {[%emt 00:00:06] [%clk
00:00:10]} 25. Qb5 {[%emt 00:00:08] [%clk 00:00:27]} Rac8 {[%emt 00:00:02] [%clk
00:00:10]} 26. exd4 {[%emt 00:00:04] [%clk 00:00:25]} Qxd4 {[%emt 00:00:01]
[%clk 00:00:11]} 27. Rec2 {[%emt 00:00:04] [%clk 00:00:23]} a6 {[%emt 00:00:02]
[%clk 00:00:12]} 28. Qb4 {[%emt 00:00:01] [%clk 00:00:23]} Qxb4 {[%emt 00:00:05]
[%clk 00:00:08]} 29. axb4 {[%emt 00:00:01] [%clk 00:00:25]} Rb8 {[%clk
00:00:10]} 30. Rc4 {[%emt 00:00:02] [%clk 00:00:25]} Rb5 {[%emt 00:00:01] [%clk
00:00:10]} 31. Ra1 {[%emt 00:00:02] [%clk 00:00:26]} Kf8 {[%emt 00:00:01] [%clk
00:00:10]} 32. g3 {[%emt 00:00:02] [%clk 00:00:26]} Ke7 {[%emt 00:00:01] [%clk
00:00:11]} 33. Kg2 {[%emt 00:00:01] [%clk 00:00:27]} Ke6 {[%emt 00:00:02] [%clk
00:00:11]} 34. Kf3 {[%emt 00:00:03] [%clk 00:00:26]} Kd5 {[%clk 00:00:12]} 35.
Rf4 {[%emt 00:00:01] [%clk 00:00:27]} f6 {[%emt 00:00:03] [%clk 00:00:11]} 36.
Re4 {[%emt 00:00:03] [%clk 00:00:26]} Rc7 {[%emt 00:00:06] [%clk 00:00:07]} 37.
Rxa6 {[%emt 00:00:02] [%clk 00:00:26]} Rc6 {[%emt 00:00:06] [%clk 00:00:04]} 38.
Rxc6 {[%emt 00:00:02] [%clk 00:00:25]} Kxc6 {[%emt 00:00:01] [%clk 00:00:05]}
39. Rd4 {[%clk 00:00:26]} Kc7 {[%emt 00:00:02] [%clk 00:00:05]} 40. Ke4 {[%emt
00:00:01] [%clk 00:00:27]} 1-0

[Site "Europe Echecs"]